bitfinex/quotes_BTCUSD_20241128
["timestamp","ask_amount","ask_price","bid_price","bid_amount"]
[1732755332596,0.0008575,96532.0,96531.0,0.253593]
[1732755332818,0.0008575,96532.0,96531.0,0.35643821]
[1732755334456,0.0008575,96532.0,96531.0,0.36743821]
[1732755334662,0.0008575,96532.0,96531.0,0.114593]
[1732755334880,0.0008575,96532.0,96531.0,0.011]
[1732755335540,0.1044495,96532.0,96531.0,0.011]
[1732755335977,0.12410527,96532.0,96531.0,0.011]
[1732755336184,0.1044495,96532.0,96531.0,0.011]
[1732755336393,0.12375309,96532.0,96531.0,0.007]
[1732755336832,0.02116109,96532.0,96522.0,0.103602]
[1732755337095,0.103597,96528.0,96522.0,0.103602]
[1732755337358,0.207189,96530.0,96522.0,0.103602]
[1732755337572,0.103597,96528.0,96522.0,0.103602]
[1732755337795,0.103609,96517.0,96511.0,0.103614]
[1732755338017,0.01930777,96529.0,96512.0,0.15]
[1732755338241,0.01930777,96528.0,96512.0,0.15]
[1732755338454,0.207188,96531.0,96517.0,0.103607]
[1732755338455,0.103601,96524.0,96517.0,0.103607]
[1732755338707,0.103601,96524.0,96512.0,0.357227]
[1732755338708,0.310786,96529.0,96520.0,0.103605]
[1732755338917,0.1036,96525.0,96516.0,0.207219]
[1732755339149,0.002,96530.0,96529.0,0.103595]
[1732755339377,0.002,96530.0,96512.0,0.15]
[1732755339625,0.002,96530.0,96516.0,0.207219]
[1732755339855,0.002,96530.0,96529.0,0.103595]
[1732755340081,0.0008575,96532.0,96527.0,0.207194]
[1732755340312,0.0008575,96532.0,96512.0,0.15]
[1732755340547,0.002,96529.0,96509.0,0.15]
[1732755340778,0.01930935,96528.0,96512.0,0.15]
[1732755341016,0.103603,96522.0,96510.0,0.207232]
[1732755341271,0.10370271,96532.0,96509.0,0.15]
[1732755341272,0.01930935,96521.0,96509.0,0.15]
[1732755341506,0.01930935,96520.0,96509.0,0.15]
[1732755341722,0.20719,96530.0,96518.0,0.103607]
[1732755341723,0.01930935,96519.0,96518.0,0.103607]
[1732755343077,0.1036,96525.0,96518.0,0.103607]
[1732755343295,0.050215,96524.0,96516.0,0.207218]
[1732755343518,0.050215,96523.0,96520.0,0.103605]
[1732755343725,0.050215,96522.0,96520.0,0.103605]
[1732755343938,0.209192,96529.0,96518.0,0.002]
[1732755343939,0.105596,96529.0,96519.0,0.207213]
[1732755344143,0.05021724,96528.0,96520.0,0.20721]
[1732755344350,0.15381524,96527.0,96517.0,0.207217]
[1732755344594,0.05021724,96526.0,96516.0,0.103609]
[1732755344826,0.05021724,96526.0,96509.0,0.152]
[1732755344827,0.05021724,96525.0,96519.0,0.103605]
[1732755345052,0.0008587,96522.0,96519.0,0.103605]
[1732755345244,0.12291832,96521.0,96516.0,0.001]
[1732755345474,0.103608,96517.0,96516.0,0.001]
[1732755345677,0.01931432,96517.0,96516.0,0.001]
[1732755346119,0.01931432,96517.0,96516.0,0.104609]
[1732755346342,0.01931432,96517.0,96511.0,0.207229]
[1732755346343,0.0008587,96522.0,96511.0,0.207229]
[1732755346600,0.01931755,96521.0,96520.0,0.103605]
[1732755348395,0.01931755,96521.0,96520.0,0.002]
[1732755349525,0.05023453,96521.0,96520.0,0.002]
[1732755349748,0.05023453,96521.0,96520.0,0.003]
[1732755350436,0.05024263,96521.0,96520.0,0.106605]
[1732755350880,0.05024263,96521.0,96520.0,0.003]
[1732755351573,0.05024263,96521.0,96520.0,0.106605]
[1732755352245,0.01931755,96521.0,96520.0,0.106605]
[1732755352516,0.05025529,96521.0,96520.0,0.106605]
[1732755352745,0.01931755,96521.0,96520.0,0.106605]
[1732755353405,0.0008587,96522.0,96521.0,0.103604]
[1732755353610,0.02019636,96522.0,96521.0,0.103604]
[1732755354228,0.0008587,96522.0,96521.0,0.103604]
[1732755354419,0.02020091,96522.0,96521.0,0.103604]
[1732755355213,0.02020091,96522.0,96521.0,0.002]
[1732755355420,0.12380948,96522.0,96521.0,0.002]
[1732755355640,0.12380948,96522.0,96521.0,0.003]
[1732755355851,0.15476751,96522.0,96521.0,0.003]
[1732755356360,0.19920948,96522.0,96521.0,0.003]
[1732755356827,0.23017477,96522.0,96521.0,0.003]
[1732755358376,0.23018203,96522.0,96521.0,0.003]
[1732755359455,0.19920948,96522.0,96521.0,0.003]
[1732755359884,0.19920948,96522.0,96521.0,0.00174214]
[1732755360350,0.21900534,96522.0,96521.0,0.00174214]
[1732755360585,0.19920948,96522.0,96521.0,0.00174214]
[1732755360795,0.19920948,96522.0,96521.0,0.001]
[1732755361693,0.09560648,96522.0,96519.0,0.0067162]
[1732755361907,0.103605,96520.0,96519.0,0.0067162]
[1732755362107,0.12295278,96520.0,96519.0,0.0067162]
[1732755363198,0.01934778,96520.0,96519.0,0.1103222]
[1732755363632,0.01934778,96520.0,96519.0,0.0067162]
[1732755364112,0.12295278,96520.0,96519.0,0.0067162]
[1732755364345,0.1044617,96522.0,96519.0,0.0067162]
[1732755364554,0.01939325,96521.0,96519.0,0.0067162]
[1732755364756,0.01939325,96520.0,96519.0,0.0067162]
[1732755364968,0.19839825,96520.0,96519.0,0.0067162]
[1732755365426,0.19840279,96520.0,96519.0,0.0067162]
[1732755366285,0.301248,96520.0,96519.0,0.0067162]
[1732755367223,0.01939779,96520.0,96519.0,0.0067162]
[1732755367440,0.0008587,96522.0,96519.0,0.0067162]
[1732755367691,0.0008587,96522.0,96521.0,0.103604]
[1732755372728,0.0008587,96522.0,96521.0,0.43754921]
[1732755372961,0.0008587,96522.0,96521.0,0.91429678]
[1732755373176,0.0008587,96522.0,96521.0,0.82491428]
[1732755373425,0.0008581,96529.0,96528.0,0.383096]
[1732755373643,0.0008581,96529.0,96528.0,0.84790628]
[1732755375544,0.0008581,96529.0,96528.0,0.84731537]
[1732755377606,0.0008581,96529.0,96528.0,0.86773762]
[1732755379017,0.0008581,96529.0,96528.0,0.88785225]
[1732755379992,0.0008581,96529.0,96528.0,1.07102396]
[1732755380212,0.0008581,96529.0,96528.0,0.86485225]
[1732755380459,0.0008581,96529.0,96528.0,1.00218506]
[1732755380689,0.0008581,96529.0,96528.0,0.6638109]
[1732755381403,0.0008581,96529.0,96528.0,0.86440119]
[1732755381634,0.0008581,96529.0,96528.0,1.00167581]
[1732755381879,0.0008581,96529.0,96528.0,0.66375271]
[1732755382331,0.0008581,96529.0,96528.0,0.52647809]
[1732755382769,0.0008581,96529.0,96528.0,0.52521885]
[1732755382999,0.0008581,96529.0,96528.0,0.47681885]
[1732755383279,0.0008581,96529.0,96528.0,0.39571885]
[1732755383512,0.0008581,96529.0,96528.0,0.3944535]
[1732755384238,0.0008581,96529.0,96528.0,0.29160829]
[1732755384457,0.0008581,96529.0,96528.0,0.27118604]
[1732755385168,0.0008581,96529.0,96528.0,0.12118604]
[1732755386126,0.0008581,96529.0,96528.0,0.35388604]
[1732755386590,0.0008581,96529.0,96528.0,0.17011463]
[1732755386828,0.0008581,96529.0,96528.0,0.27371063]
[1732755390014,0.0008581,96529.0,96528.0,0.45925584]
[1732755390495,0.0008581,96529.0,96528.0,0.55075352]
[1732755390772,0.0008581,96529.0,96528.0,0.45167668]
[1732755391219,0.0008581,96529.0,96528.0,0.54318932]
[1732755391434,0.0008581,96529.0,96528.0,0.53883053]
[1732755392504,0.0008581,96529.0,96528.0,0.44731789]
[1732755392957,0.0008581,96529.0,96528.0,0.53883053]
[1732755393173,0.0008575,96532.0,96528.0,0.53883053]
[1732755393174,0.0008575,96532.0,96531.0,0.276593]
[1732755393588,0.0008575,96532.0,96531.0,0.84519451]
[1732755396390,0.0008575,96532.0,96531.0,0.82219451]
[1732755396603,0.0008575,96532.0,96531.0,1.00504632]
[1732755396832,0.0008575,96532.0,96531.0,0.82219451]
[1732755397057,0.0008575,96532.0,96531.0,0.43653821]
[1732755397305,0.0008575,96532.0,96531.0,0.52797459]
[1732755397742,0.0008575,96532.0,96531.0,0.43653821]
[1732755399165,0.0008575,96532.0,96531.0,0.35643821]
[1732755400634,0.0008575,96532.0,96531.0,0.52795315]
[1732755400886,0.0008575,96532.0,96531.0,0.95897544]
[1732755401102,0.0008575,96532.0,96531.0,0.8402473]
[1732755401746,0.0008575,96532.0,96531.0,1.02308072]
[1732755402194,0.0008575,96532.0,96531.0,0.8402473]
[1732755402465,0.0008575,96532.0,96531.0,0.97739405]
[1732755402707,0.0008575,96532.0,96531.0,0.57125585]
[1732755402945,0.0008575,96532.0,96531.0,0.47981395]
[1732755403173,0.0008575,96532.0,96531.0,0.6169607]
[1732755403386,0.0008575,96532.0,96531.0,0.95447969]
[1732755403602,0.0008575,96532.0,96531.0,0.81736828]
[1732755404692,0.0007978,96532.0,96531.0,0.81736828]
[1732755404908,0.0007978,96532.0,96531.0,0.61703487]
[1732755405132,0.0007978,96532.0,96531.0,0.47981395]
[1732755406746,0.0007978,96532.0,96531.0,0.43191395]
[1732755406998,0.0007978,96532.0,96531.0,0.35181395]
[1732755407460,0.0006978,96532.0,96531.0,0.35181395]
[1732755409585,0.0006978,96532.0,96531.0,0.09896874]
[1732755410256,0.0006978,96532.0,96530.0,0.103594]
[1732755410512,0.0006978,96532.0,96528.0,0.00989288]
[1732755410742,0.0006978,96532.0,96530.0,0.103593]
[1732755411391,0.0006978,96532.0,96531.0,0.103593]
[1732755412736,0.0006978,96532.0,96531.0,0.20643821]
[1732755413935,0.0006978,96532.0,96531.0,0.253593]
[1732755419544,0.0006978,96532.0,96531.0,0.2553092]
[1732755419776,0.0006978,96532.0,96531.0,0.0017162]
[1732755419993,0.0006978,96532.0,96531.0,0.2553092]
[1732755422932,0.0006978,96532.0,96531.0,0.0017162]
[1732755423145,0.0006978,96532.0,96531.0,0.1053092]
[1732755423353,0.0006978,96532.0,96531.0,0.2553092]
[1732755423562,0.0006978,96532.0,96531.0,0.1517162]
[1732755423772,0.0006978,96532.0,96531.0,0.2553092]
[1732755424198,0.1042898,96532.0,96531.0,0.0017162]
[1732755425290,0.0006978,96532.0,96531.0,0.0017162]
[1732755427711,0.1042898,96532.0,96531.0,0.0017162]
[1732755428391,0.0006978,96532.0,96531.0,0.0017162]
[1732755428831,0.0006978,96532.0,96531.0,0.1053092]
[1732755431308,0.0006978,96532.0,96531.0,0.20815441]
[1732755431513,0.0006978,96532.0,96531.0,0.20923754]
[1732755432208,0.0006978,96532.0,96531.0,0.35923754]
[1732755432413,0.0006978,96532.0,96531.0,0.43555441]
[1732755432843,0.0006978,96532.0,96531.0,0.84637576]
[1732755433091,0.0006978,96532.0,96531.0,1.06757062]
[1732755433332,0.0006978,96532.0,96531.0,0.84637576]
[1732755433769,0.0008579,96537.0,96531.0,0.84637576]
[1732755433770,0.0008579,96537.0,96531.0,0.74278276]
[1732755433978,0.0008579,96537.0,96536.0,0.353988]
[1732755434188,0.0008579,96537.0,96536.0,0.79495456]
[1732755435800,0.0008579,96537.0,96536.0,0.81366105]
[1732755438633,0.0008579,96537.0,96536.0,0.81325724]
[1732755439072,0.0008579,96537.0,96536.0,0.85835724]
[1732755439299,0.0008579,96537.0,96536.0,0.89645152]
[1732755439512,0.0008579,96537.0,96536.0,0.85835724]
[1732755443191,9e-07,96537.0,96536.0,1.17091403]
[1732755443423,9e-07,96537.0,96536.0,1.33130405]
[1732755443639,9e-07,96537.0,96536.0,1.34130405]
[1732755443859,0.0002,96569.0,96548.0,0.103575]
[1732755444061,0.0002,96569.0,96548.0,0.68553783]
[1732755444304,0.0002,96569.0,96548.0,1.02325537]
[1732755444528,0.0002,96569.0,96548.0,0.84023775]
[1732755445219,0.0002,96569.0,96548.0,0.84023974]
[1732755445880,0.0002,96569.0,96548.0,1.06883642]
[1732755446293,0.0002,96569.0,96548.0,0.84023974]
[1732755446504,0.0002,96569.0,96548.0,1.02309587]
[1732755446718,0.0002,96569.0,96548.0,0.84023974]
[1732755446985,0.0754,96560.0,96548.0,0.8312941]
[1732755447181,0.0754,96560.0,96548.0,0.35642021]
[1732755447658,0.0754,96560.0,96548.0,0.37555748]
[1732755447874,0.0754,96560.0,96548.0,0.12271227]
[1732755448099,0.207129,96558.0,96548.0,0.103575]
[1732755448312,0.0754,96560.0,96548.0,0.103575]
[1732755449002,0.103566,96557.0,96548.0,0.103575]
[1732755449208,0.0754,96560.0,96548.0,0.103575]
[1732755449871,0.19767871,96560.0,96548.0,0.103575]
[1732755450358,0.09411571,96560.0,96548.0,0.103575]
[1732755450590,0.103564,96559.0,96548.0,0.103575]
[1732755450810,0.09411571,96560.0,96548.0,0.103575]
[1732755451022,0.19767871,96560.0,96548.0,0.103575]
[1732755451277,0.0754,96560.0,96548.0,0.103575]
[1732755452605,0.178962,96560.0,96548.0,0.103575]
[1732755452840,0.0754,96560.0,96548.0,0.103575]
[1732755453100,0.0754,96560.0,96546.0,0.22671376]
[1732755453101,0.207131,96557.0,96546.0,0.01956076]
[1732755453380,0.0463,96548.0,96544.0,0.15]
[1732755453632,0.0786,96547.0,96531.0,0.0017162]
[1732755453832,0.103588,96536.0,96531.0,0.0017162]
[1732755454044,0.0786,96547.0,96531.0,0.0017162]
[1732755454259,0.0193277,96546.0,96531.0,0.0017162]
[1732755454463,0.1229057,96545.0,96538.0,0.103586]
[1732755454676,0.10358,96543.0,96536.0,0.103588]
[1732755454878,0.103579,96545.0,96538.0,0.103585]
[1732755455306,0.01932888,96544.0,96534.0,0.20718]
[1732755455523,0.0786,96547.0,96532.0,0.10456141]
[1732755455756,0.0002,96549.0,96537.0,0.15]
[1732755456012,0.0002,96549.0,96548.0,0.103575]
[1732755456223,0.0002,96549.0,96545.0,0.103577]
[1732755456449,0.0002,96549.0,96547.0,0.103576]
[1732755456666,0.0002,96549.0,96543.0,0.207159]
[1732755456891,0.0002,96549.0,96545.0,0.103578]
[1732755457354,0.0002,96549.0,96546.0,0.103577]
[1732755457566,0.0010581,96549.0,96546.0,0.103576]
[1732755457987,0.0010581,96549.0,96540.0,0.207168]
[1732755458198,0.0010581,96549.0,96538.0,0.15]
[1732755458411,0.0463,96546.0,96537.0,0.0017162]
[1732755458625,0.103586,96538.0,96537.0,0.0017162]
[1732755458846,0.182186,96538.0,96537.0,0.00121097]
[1732755459300,0.24783509,96538.0,96537.0,0.00121097]
[1732755459537,0.27879617,96538.0,96537.0,0.00121097]
[1732755461120,0.27879617,96538.0,96537.0,0.00076675]
[1732755461773,0.38164138,96538.0,96537.0,0.00076675]
[1732755464687,0.27879617,96538.0,96537.0,0.00076675]
[1732755465144,0.24783509,96538.0,96537.0,0.00076675]
[1732755466228,0.26717509,96538.0,96537.0,0.00076675]
[1732755468079,0.3700203,96538.0,96537.0,0.00076675]
[1732755468325,0.40098138,96538.0,96537.0,0.00076675]
[1732755469231,0.3700203,96538.0,96537.0,0.00076675]
[1732755471156,0.3708784,96538.0,96537.0,0.00076675]
[1732755471843,0.38166217,96538.0,96537.0,0.00076675]
[1732755472566,0.38162818,96538.0,96537.0,0.00076675]
[1732755473490,0.217155,96546.0,96537.0,0.00076675]
[1732755473491,0.01,96563.0,96537.0,0.22931196]
[1732755473704,0.05801768,96605.0,96548.0,0.253575]
[1732755473705,0.103753,96569.0,96548.0,0.253575]
[1732755473965,0.0002,96569.0,96548.0,0.253575]
[1732755474208,0.0002,96569.0,96548.0,0.25284521]
[1732755474419,0.0002,96569.0,96560.0,0.103562]
[1732755475077,0.0002,96569.0,96550.0,0.12426872]
[1732755475078,0.0002,96569.0,96552.0,0.103571]
[1732755475336,0.207307,96569.0,96544.0,0.0764]
[1732755475561,0.0002,96569.0,96549.0,0.15]
[1732755475785,0.0002,96569.0,96551.0,0.207144]
[1732755475786,0.103752,96569.0,96551.0,0.207144]
[1732755475969,0.0002,96569.0,96555.0,0.103567]
[1732755476217,0.103753,96569.0,96557.0,0.103565]
[1732755476424,0.01912253,96565.0,96557.0,0.103565]
[1732755476633,0.01912253,96565.0,96558.0,6.195e-05]
[1732755477070,0.10356,96563.0,96558.0,6.195e-05]
[1732755477299,0.103556,96566.0,96558.0,6.195e-05]
[1732755477534,0.207115,96565.0,96558.0,6.195e-05]
[1732755477768,0.01886178,96566.0,96558.0,6.195e-05]
[1732755478006,0.103561,96562.0,96558.0,6.195e-05]
[1732755478302,0.0002,96569.0,96558.0,6.195e-05]
[1732755478303,0.01930729,96561.0,96558.0,6.195e-05]
[1732755478540,0.0002,96569.0,96558.0,6.195e-05]
[1732755478761,0.12215351,96568.0,96558.0,6.195e-05]
[1732755478993,0.103563,96559.0,96558.0,6.195e-05]
[1732755480881,0.22571747,96559.0,96558.0,6.195e-05]
[1732755481818,0.33251577,96559.0,96558.0,6.195e-05]
[1732755482286,0.33252488,96559.0,96558.0,6.195e-05]
[1732755482557,0.30162231,96559.0,96558.0,6.195e-05]
[1732755483468,0.30248041,96559.0,96558.0,6.195e-05]
[1732755484166,0.22658041,96559.0,96558.0,6.195e-05]
[1732755485538,0.12301741,96559.0,96558.0,6.195e-05]
[1732755485763,0.22658041,96559.0,96558.0,6.195e-05]
[1732755486810,0.22658214,96559.0,96558.0,6.195e-05]
[1732755487990,0.25748746,96559.0,96558.0,6.195e-05]
[1732755488654,0.26748746,96559.0,96558.0,6.195e-05]
[1732755489127,0.31578746,96559.0,96558.0,6.195e-05]
[1732755489365,0.32578746,96559.0,96558.0,6.195e-05]
[1732755495133,0.32578746,96559.0,96558.0,0.00177855]
[1732755497649,0.15392446,96559.0,96558.0,0.00177855]
[1732755497872,0.05107925,96559.0,96558.0,0.00177855]
[1732755498087,0.05107925,96559.0,96558.0,0.10534255]
[1732755498523,0.02017393,96559.0,96558.0,0.10534255]
[1732755499059,0.0008581,96559.0,96558.0,0.10534255]
[1732755500462,0.0008581,96559.0,96558.0,0.18214255]
[1732755502147,0.0008581,96559.0,96558.0,0.33214255]
[1732755502871,0.0008581,96559.0,96558.0,0.32445285]
[1732755507541,0.0008581,96559.0,96558.0,0.32616945]
[1732755527662,0.0008581,96559.0,96558.0,0.42901466]
[1732755527911,0.0008581,96559.0,96558.0,0.45201466]
[1732755529725,0.0008581,96559.0,96558.0,0.92699853]
[1732755530636,0.0008581,96559.0,96558.0,0.92700187]
[1732755530914,0.0008581,96559.0,96558.0,0.78971855]
[1732755531137,0.0008581,96559.0,96558.0,0.92694185]
[1732755531597,0.0008581,96559.0,96558.0,0.58923796]
[1732755532054,0.0008581,96559.0,96558.0,0.60951391]
[1732755532296,0.0008581,96559.0,96558.0,0.94722512]
[1732755532545,0.0008581,96559.0,96558.0,0.60951391]
[1732755533022,0.0008581,96559.0,96558.0,0.94722886]
[1732755533502,0.0008581,96559.0,96558.0,0.60951978]
[1732755533740,0.0008581,96559.0,96558.0,0.65901978]
[1732755534415,0.0008581,96559.0,96558.0,0.9967866]
[1732755535318,0.0008581,96559.0,96558.0,0.52179061]
[1732755535543,0.0008581,96559.0,96558.0,0.8595691]
[1732755536675,0.0008581,96559.0,96558.0,0.61331469]
[1732755536895,0.0008581,96559.0,96558.0,0.52179061]
[1732755538517,0.0008581,96559.0,96558.0,0.65907673]
[1732755538737,0.0008581,96559.0,96558.0,0.8985995]
[1732755539427,0.0008581,96559.0,96558.0,1.08177243]
[1732755539891,0.0008581,96559.0,96558.0,0.85978918]
[1732755540323,0.0008581,96559.0,96558.0,1.08850446]
[1732755540550,0.0008581,96559.0,96558.0,0.85978918]
[1732755541262,0.0008581,96559.0,96558.0,0.35221466]
[1732755541973,0.0008581,96559.0,96558.0,0.4896665]
[1732755542446,0.0008581,96559.0,96558.0,0.87411446]
[1732755542662,0.0008581,96559.0,96558.0,0.87434041]
[1732755542907,0.0008581,96559.0,96558.0,0.69084534]
[1732755543350,0.0008581,96559.0,96558.0,0.919895]
[1732755544514,0.0008581,96559.0,96558.0,0.69084534]
[1732755548021,0.0008581,96559.0,96558.0,0.68285526]
[1732755549956,0.0008581,96559.0,96558.0,0.68317102]
[1732755550192,0.0008581,96559.0,96558.0,0.67518093]
[1732755552277,0.0008581,96559.0,96558.0,0.69656689]
[1732755552751,0.0008581,96559.0,96558.0,0.61650825]
[1732755553433,0.0008581,96559.0,96558.0,0.72007225]
[1732755554305,0.0008581,96559.0,96558.0,0.72001198]
[1732755556257,0.0008581,96559.0,96558.0,0.76521198]
[1732755556487,0.0008583,96561.0,96558.0,0.66164798]
[1732755556726,0.0008583,96561.0,96560.0,0.276562]
[1732755556943,0.0008583,96561.0,96560.0,0.71829338]
[1732755558713,0.0008583,96561.0,96560.0,0.71824103]
[1732755558906,0.0008583,96561.0,96560.0,0.99356525]
[1732755559167,0.0008583,96561.0,96560.0,1.19254093]
[1732755559708,0.0008583,96561.0,96560.0,0.99355316]
[1732755559957,0.0008583,96561.0,96560.0,0.65474443]
[1732755560260,0.0008583,96561.0,96560.0,0.79481594]
[1732755560489,0.0008583,96561.0,96560.0,0.84041594]
[1732755560773,0.0002,96569.0,96560.0,0.84041594]
[1732755560774,0.0002,96569.0,96568.0,0.276553]
[1732755561020,0.0002,96569.0,96568.0,0.84040694]
[1732755561515,0.0002,96569.0,96568.0,0.85040694]
[1732755561975,0.0002,96569.0,96568.0,0.86433581]
[1732755562229,0.0002,96569.0,96568.0,1.3386608]
[1732755562458,0.00039246,96586.0,96585.0,0.363135]
[1732755562686,0.00039246,96586.0,96585.0,1.24634361]
[1732755562973,0.00039246,96586.0,96585.0,0.84038894]
[1732755563191,0.00039246,96586.0,96585.0,0.83735597]
[1732755563424,0.00039246,96586.0,96585.0,0.84735597]
[1732755563858,0.00039246,96586.0,96585.0,0.84493527]
[1732755564098,0.00039246,96586.0,96585.0,0.86039321]
[1732755565006,0.00039246,96586.0,96585.0,0.85871857]
[1732755565438,0.00039246,96586.0,96585.0,0.85796673]
[1732755566119,0.00039246,96586.0,96585.0,0.88367479]
[1732755566341,0.00039246,96586.0,96585.0,1.35799978]
[1732755567484,0.00039246,96586.0,96585.0,1.35426854]
[1732755567972,0.0002,96589.0,96585.0,1.35426854]
[1732755568215,0.0312339,96600.0,96585.0,1.35426854]
[1732755568216,0.0312339,96600.0,96599.0,0.26352]
[1732755568437,0.0312339,96600.0,96599.0,0.85381624]
[1732755568890,0.0312339,96600.0,96599.0,0.86381624]
[1732755570535,6e-05,96614.0,96608.0,0.103511]
[1732755570723,6e-05,96614.0,96608.0,0.37935621]
[1732755571206,6e-05,96614.0,96608.0,0.45735621]
[1732755571429,0.0008582,96619.0,96618.0,0.1035]
[1732755571654,0.0008582,96619.0,96618.0,0.37934521]
[1732755573505,0.0008582,96619.0,96618.0,0.3996328]
[1732755573729,0.0008582,96619.0,96618.0,0.41493202]
[1732755576528,0.0008582,96619.0,96618.0,0.01529922]
[1732755576745,0.0499582,96619.0,96618.0,0.01529922]
[1732755576985,0.0499582,96619.0,96613.0,0.15]
[1732755577206,0.0499582,96619.0,96615.0,0.15]
[1732755577903,0.0499582,96619.0,96615.0,0.253502]
[1732755578102,0.0499582,96619.0,96616.0,0.103501]
[1732755578375,0.0499582,96619.0,96615.0,0.15]
[1732755578376,0.0499582,96619.0,96617.0,0.103501]
[1732755578620,0.0499582,96619.0,96613.0,0.20701]
[1732755578843,0.0499582,96619.0,96614.0,0.310513]
[1732755579090,0.0499582,96619.0,96609.0,0.023]
[1732755579315,0.0499582,96619.0,96618.0,0.1035]
[1732755579529,0.0008582,96619.0,96618.0,0.1035]
[1732755579781,0.0008582,96619.0,96618.0,0.22934521]
[1732755580012,0.0008582,96619.0,96618.0,0.37934521]
[1732755581918,0.00056134,96629.0,96619.0,0.173]
[1732755582161,0.02166434,96629.0,96628.0,0.27145163]
[1732755582398,0.02166434,96629.0,96628.0,0.36630676]
[1732755582631,0.02166434,96629.0,96628.0,0.3647329]
[1732755584752,0.02166434,96629.0,96628.0,0.37949252]
[1732755584968,0.02166434,96629.0,96628.0,0.27664731]
[1732755586780,0.02166434,96629.0,96628.0,0.25364731]
[1732755587019,0.02166434,96629.0,96628.0,0.26188769]
[1732755587476,0.02166434,96629.0,96628.0,0.23888769]
[1732755587708,0.02166434,96629.0,96628.0,0.08888769]
[1732755588673,0.02166434,96629.0,96627.0,0.01509732]
[1732755588895,0.02166434,96629.0,96628.0,0.103489]
[1732755589128,0.02166434,96629.0,96625.0,0.15]
[1732755589353,0.02166434,96629.0,96628.0,0.103489]
[1732755589813,0.02166434,96629.0,96628.0,0.126489]
[1732755590501,0.02166434,96629.0,96628.0,0.103489]
[1732755590978,0.02166434,96629.0,96628.0,0.144903]
[1732755592564,0.02166434,96629.0,96628.0,0.103489]
[1732755592792,0.02166434,96629.0,96625.0,0.023]
[1732755593053,0.103489,96628.0,96627.0,0.041413]
[1732755593362,0.103491,96627.0,96622.0,0.023]
[1732755593494,0.02166434,96629.0,96622.0,0.023]
[1732755593739,0.02166434,96629.0,96623.0,0.103494]
[1732755593977,0.12515234,96629.0,96624.0,0.103493]
[1732755594197,0.12515234,96629.0,96623.0,0.103494]
[1732755594198,0.10349,96628.0,96623.0,0.103494]
[1732755594432,0.02166434,96629.0,96622.0,0.023]
[1732755594716,0.12515234,96629.0,96624.0,0.103493]
[1732755594935,0.02166434,96629.0,96624.0,0.103493]
[1732755595402,0.103489,96628.0,96622.0,0.103495]
[1732755595629,0.103489,96628.0,96623.0,0.103494]
[1732755596327,0.02166434,96629.0,96622.0,0.023]
[1732755596577,0.01935795,96628.0,96627.0,0.10349]
[1732755597027,0.02166434,96629.0,96624.0,0.103493]
[1732755597942,0.02166434,96629.0,96625.0,0.103492]
[1732755598179,0.02166434,96629.0,96628.0,0.126489]
[1732755601490,0.02166434,96629.0,96624.0,0.11926159]
[1732755601491,0.02166434,96629.0,96624.0,0.0017154]
[1732755601726,0.02166434,96629.0,96625.0,0.023]
[1732755602204,0.02166434,96629.0,96624.0,0.1052084]
[1732755602419,0.103492,96626.0,96624.0,0.0017154]
[1732755602698,0.0819,96628.0,96624.0,0.0017154]
[1732755602699,0.153092,96625.0,96624.0,0.0017154]
[1732755602967,0.17245141,96625.0,96624.0,0.0017154]
[1732755603392,0.17245141,96625.0,96624.0,0.00121245]
[1732755603855,0.25435141,96625.0,96624.0,0.00121245]
[1732755605955,0.234992,96625.0,96624.0,0.00121245]
[1732755606953,0.33783721,96625.0,96624.0,0.00121245]
[1732755609835,0.3540377,96625.0,96624.0,0.00121245]
[1732755613096,0.3740377,96625.0,96624.0,0.00121245]
[1732755613345,0.5240377,96625.0,96624.0,0.00121245]
[1732755615016,0.5140377,96625.0,96624.0,0.00121245]
[1732755615245,0.5240377,96625.0,96624.0,0.00121245]
[1732755615482,0.5040377,96625.0,96624.0,0.00121245]
[1732755615696,0.5140377,96625.0,96624.0,0.00121245]
[1732755615914,0.5208964,96625.0,96624.0,0.00121245]
[1732755616867,0.50469591,96625.0,96624.0,0.00121245]
[1732755617091,0.61193081,96625.0,96624.0,0.00121245]
[1732755618029,0.51469591,96625.0,96624.0,0.00121245]
[1732755619198,0.251403,96615.0,96614.0,0.0017156]
[1732755619441,0.35424821,96615.0,96614.0,0.0017156]
[1732755619698,0.36106573,96615.0,96614.0,0.0017156]
[1732755619911,0.103538,96583.0,96575.0,0.103545]
[1732755620134,0.25127783,96600.0,96575.0,0.207092]
[1732755620350,0.207043,96598.0,96575.0,0.207092]
[1732755620577,0.103536,96585.0,96577.0,0.103543]
[1732755620827,0.10284521,96597.0,96575.0,0.01464547]
[1732755621075,0.10284521,96597.0,96584.0,0.103536]
[1732755621076,0.20705,96595.0,96584.0,0.103536]
[1732755621297,0.103531,96589.0,96581.0,0.10354]
[1732755621566,0.207052,96594.0,96581.0,0.10354]
[1732755621775,0.10284521,96597.0,96581.0,0.103539]
[1732755622014,0.103532,96589.0,96581.0,0.103539]
[1732755622233,0.103532,96589.0,96574.0,0.0786]
[1732755622234,0.103532,96589.0,96582.0,0.103538]
[1732755622493,0.10284521,96597.0,96585.0,0.103535]
[1732755622494,0.103527,96593.0,96585.0,0.103535]
[1732755622717,0.103528,96592.0,96580.0,0.207081]
[1732755622939,0.1279,96600.0,96576.0,0.20709]
[1732755623175,0.01481306,96597.0,96582.0,0.0017154]
[1732755623425,0.0788,96618.0,96583.0,0.25104521]
[1732755623641,0.207005,96616.0,96600.0,0.103519]
[1732755623866,0.10284521,96616.0,96588.0,0.207065]
[1732755624149,0.207022,96608.0,96587.0,0.023]
[1732755624390,0.103513,96607.0,96599.0,0.10352]
[1732755624615,0.11029757,96607.0,96588.0,0.517662]
[1732755624836,0.103513,96606.0,96587.0,0.023]
[1732755625054,0.103513,96606.0,96596.0,0.207047]
[1732755625287,0.00677633,96605.0,96599.0,0.10352]
[1732755625742,0.00677633,96605.0,96596.0,0.207047]
[1732755625743,0.103511,96608.0,96600.0,0.103519]
[1732755626025,0.13927123,96649.0,96598.0,0.00153629]
[1732755626026,0.0796577,96625.0,96598.0,0.00153629]
[1732755626282,0.00678457,96607.0,96606.0,0.182113]
[1732755626527,0.0008577,96625.0,96601.0,0.103518]
[1732755626740,0.18164521,96624.0,96595.0,0.15]
[1732755626970,0.18164521,96624.0,96594.0,0.207052]
[1732755626971,0.103513,96606.0,96594.0,0.103526]
[1732755627205,0.01685047,96623.0,96592.0,0.253656]
[1732755627430,0.10284521,96622.0,96592.0,0.0466]